bitfinex-derivatives/quotes_BTCF0:USTF0_20250922
["timestamp","ask_amount","ask_price","bid_price","bid_amount"]
[1758508380471,0.1013445,114290.0,114280.0,0.01777809]
[1758508380664,0.15643883,114290.0,114280.0,0.01777809]
[1758508380859,0.41842979,114290.0,114280.0,0.01777809]
[1758508381060,0.41842979,114290.0,114240.0,1.14824]
[1758508381061,0.01391,114250.0,114240.0,1.14824]
[1758508381268,0.01391,114240.0,114230.0,0.0890777]
[1758508381460,0.01391,114250.0,114240.0,0.0874727]
[1758508381762,0.01391,114240.0,114230.0,0.0178418]
[1758508381968,0.03672536,114240.0,114230.0,0.0178418]
[1758508382466,0.01786064,114240.0,114230.0,0.1049223]
[1758508382666,0.01391,114250.0,114230.0,0.3553223]
[1758508382867,0.01491,114250.0,114230.0,0.1053223]
[1758508383068,0.10803273,114250.0,114240.0,0.0874728]
[1758508383270,0.03769663,114250.0,114240.0,0.0874728]
[1758508383467,0.001,114250.0,114240.0,0.0874728]
[1758508383770,0.001,114250.0,114240.0,1.5032728]
[1758508384066,0.001,114250.0,114240.0,1.77426376]
[1758508384364,0.03190296,114280.0,114270.0,0.10518212]
[1758508384568,0.05562524,114280.0,114270.0,0.10518212]
[1758508384764,0.05562524,114280.0,114270.0,0.0874496]
[1758508384963,0.3266162,114280.0,114260.0,0.0874565]
[1758508385158,0.28490096,114270.0,114260.0,0.0874576]
[1758508385358,0.37235096,114270.0,114260.0,0.01813636]
[1758508385558,0.64606657,114270.0,114260.0,0.01813636]
[1758508385772,0.37507561,114270.0,114260.0,0.01813636]
[1758508386072,0.64606657,114270.0,114260.0,0.01813636]
[1758508386267,0.28762561,114270.0,114260.0,0.01773636]
[1758508386468,0.28762561,114270.0,114260.0,0.01813636]
[1758508386663,0.64606617,114270.0,114260.0,0.01773636]
[1758508387063,0.30761657,114270.0,114260.0,0.01773636]
[1758508387261,0.03662561,114270.0,114260.0,0.01773636]
[1758508387470,0.03662561,114270.0,114260.0,0.01813636]
[1758508387666,0.04262561,114270.0,114260.0,0.10659396]
[1758508387972,0.02591,114270.0,114260.0,0.10759396]
[1758508388171,0.013,114270.0,114260.0,0.35759396]
[1758508388476,0.02691,114270.0,114260.0,0.35759396]
[1758508388667,0.013,114270.0,114260.0,0.35759396]
[1758508389068,0.02691,114270.0,114260.0,0.27013636]
[1758508389265,0.38535126,114270.0,114260.0,0.02013636]
[1758508389472,0.1143603,114270.0,114260.0,0.01973636]
[1758508389768,0.29790096,114270.0,114260.0,0.02013636]
[1758508389982,0.02691,114270.0,114260.0,0.02013636]
[1758508390267,0.013,114270.0,114260.0,0.10759426]
[1758508390475,0.013,114270.0,114260.0,0.35759426]
[1758508390666,0.013,114270.0,114260.0,0.62858522]
[1758508390864,0.02573,114270.0,114260.0,0.27013636]
[1758508391069,0.38417126,114270.0,114260.0,0.02013636]
[1758508391372,0.38417126,114270.0,114260.0,0.01973636]
[1758508391564,0.29672096,114270.0,114260.0,0.02013636]
[1758508391759,0.02573,114270.0,114260.0,0.10759426]
[1758508391971,0.02573,114270.0,114260.0,0.02013636]
[1758508392174,0.02573,114270.0,114260.0,0.10759426]
[1758508392376,0.1131804,114270.0,114260.0,0.02013636]
[1758508392573,0.63417136,114270.0,114260.0,0.02013636]
[1758508392868,0.63417136,114270.0,114260.0,0.001]
[1758508393069,0.63417136,114270.0,114240.0,0.0874724]
[1758508393070,0.1002027,114240.0,114230.0,0.00181705]
[1758508393272,0.01283,114240.0,114230.0,0.00181705]
[1758508393462,0.53382096,114240.0,114230.0,0.00181705]
[1758508393776,0.28382096,114240.0,114230.0,0.00221705]
[1758508393978,0.28382096,114240.0,114230.0,0.08969775]
[1758508394170,0.28382096,114240.0,114230.0,0.00221705]
[1758508394473,0.01583,114240.0,114230.0,0.09029775]
[1758508394673,0.01583,114240.0,114230.0,0.09069775]
[1758508394868,0.28782096,114240.0,114230.0,0.09069795]
[1758508395274,0.08664104,114240.0,114230.0,0.09069795]
[1758508395476,0.07391104,114240.0,114230.0,0.09069795]
[1758508396275,0.357632,114240.0,114230.0,0.09069815]
[1758508396572,0.08664104,114240.0,114230.0,0.09069815]
[1758508396964,0.07391104,114240.0,114230.0,0.09069815]
[1758508397179,0.08664104,114240.0,114230.0,0.09069815]
[1758508397373,0.08664104,114240.0,114230.0,0.09029815]
[1758508397573,0.08664104,114240.0,114230.0,0.09069815]
[1758508397774,0.08664104,114240.0,114230.0,0.0888811]
[1758508397976,0.07391104,114240.0,114230.0,0.0888811]
[1758508398376,0.07391104,114240.0,114230.0,0.3388811]
[1758508398680,0.08664104,114240.0,114230.0,0.0014]
[1758508398876,0.4451054,114240.0,114230.0,0.001]
[1758508399183,0.08664104,114240.0,114230.0,0.0888811]
[1758508399371,0.07391104,114240.0,114230.0,0.0888811]
[1758508399568,0.07391104,114240.0,114230.0,0.60987206]
[1758508399875,0.00239558,114240.0,114230.0,0.61713206]
[1758508400073,0.00239558,114240.0,114230.0,0.36713206]
[1758508400281,0.00239558,114240.0,114230.0,0.61713206]
[1758508400876,0.09953902,114280.0,114270.0,0.0874506]
[1758508401071,0.08680902,114280.0,114270.0,0.0874506]
[1758508401274,0.37115626,114290.0,114260.0,0.0874516]
[1758508401477,0.37116406,114280.0,114260.0,0.0874516]
[1758508401678,0.01273,114270.0,114260.0,0.0874516]
[1758508402178,0.28372096,114270.0,114260.0,0.0874516]
[1758508402371,0.01273,114250.0,114240.0,1.2812292]
[1758508402565,0.01273,114250.0,114240.0,1.2820292]
[1758508402771,0.28372096,114260.0,114250.0,0.0874661]
[1758508402772,0.01273,114260.0,114250.0,0.0874661]
[1758508403075,0.1689938,114260.0,114250.0,0.0004]
[1758508403267,0.1002114,114230.0,114220.0,1.85044]
[1758508403471,0.37120236,114230.0,114220.0,0.005]
[1758508403680,0.1002114,114230.0,114220.0,0.005]
[1758508403876,0.01173,114230.0,114220.0,0.0054]
[1758508404477,0.03550898,114230.0,114220.0,0.0054]
[1758508404777,0.03750898,114230.0,114220.0,0.017]
[1758508404984,0.10629746,114230.0,114220.0,0.0174]
[1758508405166,0.03850898,114230.0,114220.0,0.0184]
[1758508405874,0.003,114230.0,114220.0,0.1058891]
[1758508407274,0.003,114230.0,114220.0,0.3558891]
[1758508408978,0.07166239,114230.0,114220.0,0.3558891]
[1758508410086,0.07166239,114230.0,114220.0,0.3631491]
[1758508410382,0.01830588,114290.0,114220.0,0.3631491]
[1758508410383,0.04433908,114280.0,114260.0,0.0874585]
[1758508410587,0.03700001,114280.0,114270.0,0.0874508]
[1758508411281,0.02374001,114280.0,114270.0,0.0874508]
[1758508411581,0.02974001,114280.0,114270.0,1.2840508]
[1758508411776,0.09958257,114280.0,114270.0,0.0874508]
[1758508411977,0.02974001,114280.0,114270.0,1.2838908]
[1758508412173,0.56399097,114280.0,114270.0,0.0874508]
[1758508412378,0.56399097,114280.0,114270.0,0.0878508]
[1758508412886,0.04174001,114280.0,114270.0,0.0888508]
[1758508413283,0.05500001,114280.0,114270.0,1.2853308]
[1758508413484,0.04900001,114280.0,114270.0,1.2853308]
[1758508413682,0.05600001,114280.0,114270.0,1.2853308]
[1758508414181,0.05600001,114280.0,114270.0,1.2838908]
[1758508414384,0.04274001,114280.0,114270.0,1.2838908]
[1758508414584,0.019,114280.0,114270.0,1.2911508]
[1758508415186,0.019,114280.0,114270.0,1.2838908]
[1758508415684,0.03226,114280.0,114270.0,1.2832508]
[1758508415889,0.05563698,114280.0,114270.0,1.2823308]
[1758508416090,0.39689722,114280.0,114270.0,0.0888508]
[1758508416279,0.32662794,114280.0,114270.0,1.2811708]
[1758508416589,0.32662794,114280.0,114270.0,1.2815708]
[1758508416784,0.32662794,114280.0,114270.0,0.0884508]
[1758508417085,0.32662794,114280.0,114270.0,1.2804108]
[1758508417284,0.05563698,114280.0,114270.0,1.2808108]
[1758508417783,0.05563698,114280.0,114270.0,0.0888508]
[1758508417983,0.05563698,114280.0,114270.0,1.2796108]
[1758508419190,0.05563698,114280.0,114270.0,0.0888508]
[1758508419394,0.05563698,114280.0,114270.0,1.2795708]
[1758508419995,0.04237698,114280.0,114270.0,1.2795708]
[1758508420382,0.11380036,114280.0,114270.0,1.2795708]
[1758508420588,0.04237698,114280.0,114270.0,1.2795708]
[1758508420884,0.05563698,114280.0,114270.0,0.0888508]
[1758508421091,0.05563698,114280.0,114270.0,1.2743708]
[1758508421490,0.05563698,114280.0,114270.0,1.2739708]
[1758508421690,0.05563698,114280.0,114270.0,0.0888508]
[1758508421885,0.05563698,114280.0,114270.0,1.2739708]
[1758508422086,0.05563698,114280.0,114270.0,1.2743708]
[1758508422297,0.019,114280.0,114270.0,1.2816308]
[1758508422499,0.07044494,114290.0,114280.0,0.0874435]
[1758508422695,0.02336232,114290.0,114280.0,0.0874435]
[1758508423492,0.01757852,114300.0,114290.0,0.0874359]
[1758508423687,0.01326,114310.0,114300.0,0.0874282]
[1758508423886,0.03629644,114310.0,114300.0,0.0874282]
[1758508424597,0.02303644,114310.0,114300.0,0.0874282]
[1758508425185,0.03099086,114320.0,114310.0,0.0874206]
[1758508425385,0.05400644,114320.0,114310.0,1.2666606]
[1758508426090,0.05400644,114320.0,114310.0,0.0874206]
[1758508426285,0.05400644,114320.0,114310.0,1.2665006]
[1758508426486,0.06400644,114320.0,114310.0,1.2675006]
[1758508426889,0.13227212,114320.0,114310.0,1.2675006]
[1758508427090,0.05874644,114320.0,114310.0,1.2675006]
[1758508427394,0.05874644,114320.0,114310.0,0.0884206]
[1758508427595,0.68545714,114320.0,114310.0,1.2639806]
[1758508427798,0.80394912,114320.0,114310.0,0.0884206]
[1758508427999,0.80394912,114320.0,114310.0,0.0888206]
[1758508428190,0.71653622,114320.0,114310.0,0.0888206]
[1758508428795,0.79394912,114320.0,114310.0,0.0878206]
[1758508429003,0.70553622,114320.0,114310.0,0.0888206]
[1758508429301,0.07500644,114320.0,114310.0,0.1115906]
[1758508429489,0.52587004,114320.0,114310.0,0.1115906]
[1758508429695,0.43845714,114320.0,114310.0,1.2857906]
[1758508429893,0.07500644,114320.0,114310.0,1.2857906]
[1758508430300,0.06174644,114320.0,114310.0,1.2857906]
[1758508430495,0.06174644,114320.0,114310.0,1.6370313]
[1758508430900,0.13138974,114320.0,114310.0,1.2960506]
[1758508431097,0.13138974,114320.0,114310.0,0.1115906]
[1758508431302,0.12163416,114320.0,114310.0,1.2853106]
[1758508431704,0.12163416,114320.0,114310.0,0.1115906]
[1758508432000,0.12163416,114320.0,114310.0,1.2851506]
[1758508432399,0.46261486,114320.0,114310.0,1.2851506]
[1758508432902,0.44935486,114320.0,114310.0,1.2851506]
[1758508433298,0.10837416,114320.0,114310.0,1.2851506]
[1758508433691,0.021,114320.0,114310.0,1.5454106]
[1758508434001,0.021,114320.0,114310.0,1.8863913]
[1758508434193,0.0183486,114320.0,114310.0,1.5454106]
[1758508434395,0.0183486,114320.0,114310.0,1.5303906]
[1758508434603,0.0311086,114320.0,114310.0,1.2809506]
[1758508435195,0.0311086,114320.0,114310.0,1.2809906]
[1758508435396,0.0311086,114320.0,114310.0,1.2805906]
[1758508435601,0.0311086,114320.0,114310.0,1.2798706]
[1758508435602,0.12523162,114320.0,114310.0,1.2798706]
[1758508435799,0.3952893,114320.0,114310.0,1.2795106]
[1758508435998,0.3952893,114320.0,114310.0,0.1115906]
[1758508436194,0.4827022,114320.0,114310.0,1.2789506]
[1758508436395,0.7327022,114320.0,114310.0,1.17016]
[1758508436610,0.7327022,114320.0,114310.0,1.2569806]
[1758508436807,0.7489239,114320.0,114310.0,1.2573806]
[1758508437001,0.7489239,114320.0,114310.0,1.2569806]
[1758508437305,0.77191418,114320.0,114310.0,1.2573806]
[1758508437697,0.77191418,114320.0,114310.0,1.2573406]
[1758508438006,0.661511,114320.0,114310.0,1.2573406]
[1758508438905,0.68451527,114320.0,114310.0,1.2573406]
[1758508439102,0.75575983,114320.0,114310.0,1.2573406]
[1758508439502,0.84317273,114320.0,114310.0,1.2543006]
[1758508439701,0.75575983,114320.0,114310.0,1.2543006]
[1758508440103,0.75575983,114320.0,114310.0,0.0898206]
[1758508440308,0.84317273,114320.0,114310.0,1.2542606]
[1758508440505,0.75575983,114320.0,114310.0,1.2542606]
[1758508440699,0.16477913,114320.0,114310.0,1.2542606]
[1758508440904,0.12881913,114320.0,114310.0,1.2542606]
[1758508441100,0.12881913,114320.0,114310.0,1.8452413]
[1758508441300,0.06507816,114320.0,114310.0,1.8452413]
[1758508441508,0.03095989,114350.0,114310.0,1.8452413]
[1758508441509,0.03095989,114350.0,114340.0,0.1104076]
[1758508441710,0.0407357,114350.0,114340.0,1.2527976]
[1758508441910,0.11184285,114350.0,114340.0,1.2527976]
[1758508442113,0.08880704,114350.0,114340.0,1.2527976]
[1758508442706,0.07110715,114350.0,114340.0,1.8540383]
[1758508443010,0.01276,114370.0,114350.0,0.0873845]
[1758508443204,0.3537407,114370.0,114360.0,0.0873824]
[1758508443403,0.3537407,114370.0,114360.0,1.2253024]
[1758508443404,0.03577708,114370.0,114360.0,1.2253024]
[1758508443902,0.39254493,114370.0,114360.0,1.2624624]
[1758508444105,0.03880423,114370.0,114360.0,1.2624624]
[1758508444300,0.07476423,114370.0,114360.0,1.2874324]
[1758508444708,0.42274493,114370.0,114360.0,1.2881924]
[1758508445214,0.51011963,114370.0,114360.0,1.17784]
[1758508445408,0.51011963,114370.0,114360.0,0.0887823]
[1758508445409,0.42274493,114370.0,114360.0,0.0887823]
[1758508445714,0.42274493,114370.0,114360.0,1.2653823]
[1758508445908,0.42274493,114370.0,114360.0,1.2649823]
[1758508446109,0.42274493,114370.0,114360.0,1.2661823]
[1758508446306,0.43274493,114370.0,114360.0,0.0014]
[1758508446513,0.75418914,114370.0,114360.0,1.2663023]
[1758508446809,0.41320844,114370.0,114360.0,1.2663023]
[1758508447010,0.12724844,114370.0,114360.0,1.606883]
[1758508447215,0.12724844,114370.0,114360.0,1.607283]
[1758508447410,0.10423136,114370.0,114360.0,1.607283]
[1758508447712,0.08844421,114370.0,114360.0,1.864543]
[1758508447916,0.12440421,114370.0,114360.0,0.3617923]
[1758508448117,0.46538491,114370.0,114360.0,1.2681822]
[1758508448317,0.82551556,114370.0,114360.0,1.1808]
[1758508448512,0.82551556,114370.0,114360.0,1.18096]
[1758508448716,0.84164521,114370.0,114360.0,1.18136]
[1758508449016,0.84164521,114370.0,114360.0,1.2687423]
[1758508449017,0.75427071,114370.0,114360.0,1.2687423]
[1758508449215,0.84164541,114370.0,114360.0,1.18136]
[1758508449608,0.75427071,114370.0,114360.0,1.18136]
[1758508449812,0.84164541,114370.0,114360.0,1.18136]
[1758508450408,0.84164541,114370.0,114360.0,0.0014]
[1758508451019,0.75427071,114370.0,114360.0,0.001]
[1758508451216,0.41329001,114370.0,114360.0,0.1117923]
[1758508451422,0.14009001,114370.0,114360.0,0.1117923]
[1758508451917,0.16318001,114370.0,114360.0,0.1117923]
[1758508452822,0.16318001,114370.0,114360.0,1.2898323]
[1758508453623,0.12733001,114370.0,114360.0,1.880813]
[1758508453808,0.017,114370.0,114360.0,1.880813]
[1758508455315,0.10541718,114390.0,114380.0,0.108757]
[1758508455613,0.1121188,114390.0,114380.0,1.283877]
[1758508456919,0.1297388,114390.0,114380.0,1.282837]
[1758508457313,0.5811688,114390.0,114380.0,0.02139]
[1758508457627,0.4938095,114390.0,114380.0,1.282677]
[1758508457927,0.5811689,114390.0,114380.0,0.02179]
[1758508458424,0.8311689,114390.0,114380.0,1.1738]
[1758508458826,0.8311689,114390.0,114380.0,1.1734]
[1758508459016,0.8311689,114390.0,114380.0,1.1738]
[1758508459717,0.8311689,114390.0,114380.0,0.0004]
[1758508459913,0.8311689,114390.0,114380.0,0.1087571]
[1758508459914,0.4028288,114390.0,114380.0,0.1087571]
[1758508460116,0.4028288,114390.0,114380.0,0.1091571]
[1758508460427,0.8311689,114390.0,114380.0,0.0004]
[1758508462626,0.8311689,114390.0,114360.0,1.2564573]
[1758508462627,0.1240846,114370.0,114360.0,1.2564573]
[1758508462828,0.48783856,114370.0,114360.0,1.2564573]
[1758508463026,0.48783856,114370.0,114360.0,1.2556573]
[1758508463418,0.48783856,114370.0,114360.0,1.2560573]
[1758508463623,0.48783856,114370.0,114360.0,0.0877773]
[1758508463919,0.48783856,114370.0,114360.0,0.0004]
[1758508464123,0.48783856,114370.0,114360.0,0.0124]
[1758508465017,0.05948326,114370.0,114360.0,0.1211723]
[1758508465519,0.14685796,114370.0,114360.0,0.0997823]
[1758508465725,0.48783866,114370.0,114360.0,0.0997823]
[1758508466327,0.48783866,114370.0,114360.0,0.0124]
[1758508466825,0.40046396,114370.0,114360.0,0.1211723]
[1758508467125,0.48783866,114370.0,114360.0,0.1211723]
[1758508467322,0.48783866,114370.0,114360.0,0.03379]
[1758508467525,0.48783866,114370.0,114360.0,0.1211723]
[1758508467718,0.05948326,114370.0,114360.0,0.1211723]
[1758508468128,0.02277326,114370.0,114360.0,0.1211723]
[1758508468426,0.02277326,114370.0,114360.0,0.3711723]
[1758508469030,0.05795326,114370.0,114360.0,1.5312123]
[1758508469525,0.14532796,114370.0,114360.0,0.3711723]
[1758508469729,0.48630866,114370.0,114360.0,0.1211723]
[1758508469930,0.48630866,114370.0,114360.0,0.0124]
[1758508470320,0.48630866,114370.0,114360.0,1.17068]
[1758508470522,0.48630866,114370.0,114360.0,1.17028]
[1758508470718,0.48630866,114370.0,114360.0,1.17068]
[1758508470935,0.48630866,114370.0,114360.0,0.0124]
[1758508471121,0.51738774,114370.0,114360.0,0.0124]
[1758508471328,0.17640704,114370.0,114360.0,0.0124]
[1758508471526,0.51738774,114370.0,114360.0,0.012]
[1758508471726,0.51738774,114370.0,114360.0,0.0124]
[1758508472234,0.51738774,114370.0,114360.0,0.0004]
[1758508472235,0.52138774,114370.0,114360.0,0.0004]
[1758508472426,0.52338774,114370.0,114360.0,0.0004]
[1758508473021,0.51938774,114370.0,114360.0,0.0004]
[1758508473332,0.52538774,114370.0,114360.0,0.0014]
[1758508473928,0.77538774,114370.0,114360.0,0.0014]
[1758508474833,0.43440704,114370.0,114360.0,0.0014]
[1758508475133,0.77538774,114370.0,114360.0,0.0014]
[1758508475331,0.74430866,114370.0,114360.0,0.0014]
[1758508475832,0.77538774,114370.0,114360.0,0.0014]
[1758508476629,0.96736277,114370.0,114360.0,0.0014]
[1758508477432,0.92068774,114370.0,114360.0,0.0014]
[1758508478929,0.57970704,114370.0,114360.0,0.0014]
[1758508479129,0.92068774,114370.0,114360.0,0.0014]
[1758508479328,0.67068774,114370.0,114360.0,0.0014]
[1758508479929,0.92068774,114370.0,114360.0,0.0014]
[1758508480141,0.93628369,114370.0,114360.0,0.00050809]
[1758508480648,0.93628369,114370.0,114330.0,0.14826711]
[1758508480649,0.1225771,114340.0,114330.0,0.14826711]
[1758508480843,0.02277326,114340.0,114330.0,0.14826711]
[1758508481441,0.2678705,114350.0,114340.0,0.1087871]
[1758508481641,0.20301616,114350.0,114340.0,0.1087871]
[1758508482442,0.29040556,114350.0,114340.0,0.1087871]
[1758508482647,0.63138626,114350.0,114340.0,0.02139]
[1758508483249,0.63438626,114350.0,114340.0,0.02639]
[1758508483650,0.70373169,114350.0,114340.0,0.1137871]
[1758508483850,0.25349159,114350.0,114340.0,0.3587871]
[1758508484151,0.09488159,114350.0,114340.0,0.7017678]
[1758508484348,0.003,114350.0,114340.0,0.7090278]
[1758508484651,0.01831,114350.0,114340.0,1.2505471]
[1758508485253,0.01831,114350.0,114340.0,1.2509471]
[1758508486045,0.2639121,114370.0,114360.0,0.0873815]
[1758508486249,0.2857821,114370.0,114360.0,0.02139]
[1758508486449,0.6267628,114370.0,114360.0,0.02139]
[1758508486845,0.1765338,114370.0,114360.0,0.1087715]
[1758508487046,0.2639077,114370.0,114360.0,0.1087715]
[1758508487246,0.6267584,114370.0,114360.0,0.02139]
[1758508487446,0.6287584,114370.0,114360.0,0.1087715]
[1758508487648,0.6347584,114370.0,114360.0,0.1097715]
[1758508487847,0.2937777,114370.0,114360.0,0.1097715]
[1758508488043,0.4020845,114370.0,114360.0,0.1097715]
[1758508488247,0.0259238,114370.0,114360.0,0.1097715]
[1758508488947,0.0259238,114370.0,114360.0,0.64072782]
[1758508490964,0.08934554,114390.0,114380.0,0.1160163]
[1758508491452,0.08934554,114390.0,114380.0,1.2484963]
[1758508492061,0.09434554,114390.0,114380.0,1.2484963]
[1758508492451,0.09434554,114390.0,114380.0,1.2504963]
[1758508492650,0.09434554,114390.0,114380.0,1.5004963]
[1758508492959,0.09434554,114390.0,114380.0,1.77119262]
[1758508493160,0.0230466,114390.0,114380.0,1.77119262]
[1758508493357,0.0230466,114390.0,114380.0,0.63871262]
[1758508493557,0.0230466,114390.0,114380.0,1.76711262]
[1758508494162,0.0230466,114390.0,114380.0,1.76603262]
[1758508495655,0.0225385,114390.0,114380.0,1.76523262]
[1758508496158,0.0225385,114390.0,114380.0,0.63871262]
[1758508496459,0.0225385,114390.0,114380.0,1.76095262]
[1758508497057,0.0225385,114390.0,114380.0,0.63871262]
[1758508497356,0.0225385,114390.0,114380.0,0.3680163]
[1758508497555,0.0225385,114390.0,114380.0,1.4866963]
[1758508497860,0.0225385,114390.0,114380.0,0.3680163]
[1758508498059,0.0225385,114390.0,114380.0,1.4866963]
[1758508498362,0.1442972,114390.0,114380.0,0.1107563]
[1758508498546,0.41499352,114390.0,114380.0,1.2281163]
[1758508498857,0.66499352,114390.0,114380.0,0.002]
[1758508499062,0.66499352,114390.0,114380.0,0.0024]
[1758508499254,0.68747504,114390.0,114380.0,0.0024]
[1758508499650,0.68747504,114390.0,114380.0,0.00233898]
[1758508499957,0.68747504,114390.0,114350.0,0.10951185]
[1758508499958,0.1217816,114360.0,114350.0,0.10791635]
[1758508500160,0.1217816,114360.0,114350.0,0.12949635]
[1758508500556,0.1217816,114360.0,114350.0,0.12989635]
[1758508501063,0.3717816,114360.0,114350.0,0.02092705]
[1758508501270,0.64247792,114360.0,114350.0,0.02092705]
[1758508501562,0.64247792,114360.0,114350.0,0.02192705]
[1758508501951,0.64247792,114360.0,114350.0,0.03252705]
[1758508502167,0.64247792,114360.0,114350.0,0.0124]
[1758508502752,0.71275393,114360.0,114350.0,0.012]
[1758508502951,0.71275393,114360.0,114350.0,0.0124]
[1758508503364,0.10467601,114360.0,114350.0,0.1213693]
[1758508503757,0.08344601,114360.0,114350.0,1.2282493]
[1758508504061,0.08344601,114360.0,114350.0,1.4782493]
[1758508504259,0.07027601,114360.0,114350.0,1.4782493]
[1758508504460,0.05242871,114370.0,114360.0,0.0873816]
[1758508504664,0.05242871,114370.0,114360.0,0.1089616]
[1758508505066,0.03119871,114370.0,114360.0,0.1089616]
[1758508505261,0.05242871,114370.0,114360.0,0.1089616]
[1758508505656,0.05242871,114370.0,114360.0,0.1169616]
[1758508505959,0.01802871,114370.0,114360.0,0.1169616]
[1758508506160,0.01802871,114370.0,114360.0,0.1119616]
[1758508506865,0.01802871,114370.0,114360.0,1.2137616]
[1758508507061,0.01802871,114370.0,114360.0,1.73445792]
[1758508507671,0.02002871,114370.0,114360.0,1.73445792]
[1758508508365,0.002,114370.0,114360.0,1.73445792]
[1758508509358,0.002,114370.0,114360.0,1.73037792]
[1758508509558,0.01317,114420.0,114410.0,0.1089235]
[1758508509758,0.01317,114430.0,114410.0,1.2066435]
[1758508509955,0.02914976,114430.0,114420.0,0.1098158]
[1758508510159,0.03614,114430.0,114420.0,0.1098158]
[1758508510466,0.03574,114430.0,114420.0,0.02248]
[1758508510671,0.03614,114430.0,114420.0,0.02248]
[1758508510976,0.03614,114430.0,114410.0,1.13776]
[1758508510977,0.03575,114420.0,114410.0,1.13776]
[1758508511267,0.03575,114420.0,114410.0,0.02248]
[1758508511768,0.1230858,114420.0,114410.0,0.02248]
[1758508511960,0.01318,114410.0,114400.0,1.11548]
[1758508512159,0.30644632,114410.0,114400.0,0.02328]
[1758508512359,0.28575,114410.0,114380.0,0.10773521]
[1758508512561,0.03575,114390.0,114380.0,1.24329521]
[1758508512761,0.03575,114390.0,114380.0,0.13021521]
[1758508512965,0.03575,114390.0,114380.0,1.24265521]
[1758508513458,0.03575,114390.0,114380.0,1.24305521]
[1758508513657,0.10477769,114390.0,114380.0,0.13061521]
[1758508513859,0.10477769,114390.0,114380.0,0.13021521]
[1758508514064,0.10477769,114390.0,114380.0,1.24121521]
[1758508514258,0.08420769,114390.0,114380.0,1.24121521]
[1758508514464,0.07102769,114390.0,114380.0,1.49121521]
[1758508515072,0.07202769,114390.0,114380.0,1.49121521]
[1758508515467,0.09459769,114390.0,114380.0,0.13061521]
[1758508515776,0.10777769,114390.0,114380.0,1.24045521]
[1758508516164,0.10777769,114390.0,114380.0,0.13061521]
[1758508516470,0.44513649,114390.0,114380.0,0.04325181]
[1758508516669,0.44513649,114390.0,114380.0,0.02077181]
[1758508516868,0.44513649,114390.0,114380.0,0.02037181]
[1758508517174,0.35777769,114390.0,114380.0,0.13061821]
[1758508517570,0.10777769,114390.0,114380.0,0.13061821]
[1758508517878,0.08520769,114390.0,114380.0,0.40131453]
[1758508518077,0.19513649,114390.0,114380.0,0.13061821]
[1758508518474,0.19513649,114390.0,114380.0,0.02077181]
[1758508518879,0.44513649,114390.0,114380.0,0.02037181]
[1758508519077,0.44513649,114390.0,114380.0,0.02077181]
[1758508519281,0.71583281,114390.0,114380.0,0.02077181]
[1758508519473,0.73834698,114390.0,114380.0,0.02037181]
[1758508519779,0.73834698,114390.0,114380.0,0.02077181]
[1758508520478,0.73834698,114390.0,114380.0,0.02037181]
[1758508520679,0.73834698,114390.0,114380.0,0.02077181]
[1758508521479,0.03575,114350.0,114340.0,0.4149438]
[1758508521670,0.03575,114350.0,114340.0,0.4148438]
[1758508522169,0.03575,114350.0,114340.0,0.4152438]
[1758508522681,0.03575,114350.0,114340.0,0.4312438]
[1758508523081,0.03575,114350.0,114340.0,0.4105166]
[1758508523880,0.03506,114360.0,114350.0,0.0873893]
[1758508524084,0.03506,114360.0,114350.0,0.1085493]
[1758508525284,0.03506,114360.0,114350.0,0.1175493]
[1758508525676,0.02188,114360.0,114350.0,0.1175493]
[1758508526078,0.03506,114370.0,114360.0,0.1085416]
[1758508527585,0.01755794,114380.0,114370.0,0.108534]
[1758508527780,0.01755794,114380.0,114370.0,0.38721032]
[1758508528178,0.11824434,114380.0,114370.0,1.190494]
[1758508528579,0.03087794,114380.0,114370.0,1.190494]
[1758508528775,0.01755794,114380.0,114370.0,1.198474]
[1758508528981,0.01755794,114380.0,114370.0,1.71917032]
[1758508529286,0.01755794,114380.0,114370.0,1.449874]
[1758508529287,0.01855794,114380.0,114370.0,1.449874]
[1758508529884,0.01855794,114380.0,114370.0,0.369514]
[1758508530088,0.01855794,114380.0,114370.0,1.448114]
[1758508530283,0.01855794,114380.0,114370.0,0.111534]
[1758508530284,0.14112434,114380.0,114370.0,0.111534]
[1758508530590,0.14112434,114380.0,114370.0,0.02416]
[1758508530789,0.14112434,114380.0,114370.0,0.02456]
[1758508531283,0.41182066,114380.0,114370.0,0.02456]
[1758508531592,0.55712066,114380.0,114370.0,0.02456]
[1758508531785,0.28642434,114380.0,114370.0,0.02456]
[1758508532382,0.14112434,114380.0,114370.0,0.111934]
[1758508532883,0.14112434,114380.0,114370.0,0.02456]
[1758508533083,0.14112434,114380.0,114370.0,0.111934]
[1758508533689,0.14112434,114380.0,114370.0,0.02456]
[1758508533989,0.14609865,114380.0,114370.0,0.02456]
[1758508534182,0.14609865,114380.0,114370.0,0.111934]
[1758508534386,0.0362,114380.0,114370.0,0.111934]
[1758508534582,0.001,114380.0,114370.0,0.369914]
[1758508535483,0.0883664,114380.0,114370.0,0.369914]
[1758508535679,0.1235664,114380.0,114370.0,0.02456]
[1758508535884,0.39426272,114380.0,114370.0,0.02416]
[1758508536084,0.39426272,114380.0,114370.0,0.111534]
[1758508536491,0.39426272,114380.0,114370.0,0.0034]
[1758508537293,0.39426272,114380.0,114370.0,0.003]
[1758508537594,0.64426272,114380.0,114370.0,0.0034]
[1758508537788,0.3735664,114380.0,114370.0,0.0034]
[1758508537992,0.64426272,114380.0,114370.0,0.0034]
[1758508538186,0.66669343,114380.0,114370.0,0.0034]
[1758508539295,0.41669343,114380.0,114370.0,0.0034]
[1758508539497,0.56199343,114380.0,114370.0,0.0034]
[1758508539694,0.81199343,114380.0,114370.0,0.0034]
[1758508539894,0.81199343,114380.0,114370.0,0.003]
[1758508540198,0.81199343,114380.0,114370.0,0.0034]
[1758508543193,0.82993443,114380.0,114370.0,0.0034]
[1758508543394,0.1007169,114340.0,114330.0,1.9481214]
[1758508543594,0.1007169,114340.0,114330.0,0.0189]
[1758508543796,0.1225969,114340.0,114330.0,0.1274646]
[1758508543998,0.1225969,114340.0,114330.0,0.04006]
[1758508544201,0.1225969,114340.0,114330.0,0.04046]
[1758508544905,0.19162672,114340.0,114330.0,0.05646]
[1758508545101,0.46232304,114340.0,114330.0,0.05646]
[1758508545292,0.46232304,114340.0,114330.0,0.0393]
[1758508545501,0.60762304,114340.0,114330.0,0.0389]
[1758508545803,0.60762304,114340.0,114330.0,0.0393]
[1758508545999,0.60762304,114340.0,114330.0,0.0389]
[1758508546305,0.33692672,114340.0,114330.0,0.0393]
[1758508546799,0.24952982,114340.0,114330.0,0.1478646]
[1758508547002,0.10422982,114340.0,114330.0,0.1478646]